fUST/lending_fUST_20240423
["ID","MTS","AMOUNT","RATE_DAILY","PERIOD"]
[323279697,1713867042940,-151.0,0.00022091,2]
[323279699,1713867042949,-151.0,0.00022091,2]
[323279701,1713867042958,-151.0,0.00022091,2]
[323279702,1713867042968,-345.993572,0.00022091,2]
[323279704,1713867042977,-345.993572,0.00022091,2]
[323279706,1713867042986,-151.0,0.00022091,2]
[323279708,1713867042995,-151.0,0.00022091,2]
[323279710,1713867043004,-151.0,0.00022091,2]
[323279713,1713867043015,-322.812041,0.00022091,2]
[323279715,1713867043024,-322.812041,0.00022091,2]
[323279717,1713867043032,-1000.0,0.000221,2]
[323279718,1713867043041,-520.68845158,0.00022125,2]
[323279720,1713867043050,-254.0,0.0002215,2]
[323279722,1713867043059,-156.60822649,0.00022189,2]
[323279724,1713867043068,-155.55822496,0.00022189,2]
[323279726,1713867043078,-162.55370542,0.00022189,2]
[323279728,1713867043086,-282.52324143,0.00022189,2]
[323279730,1713867043095,-207.98156917,0.00022189,2]
[323279732,1713867043104,-500.0,0.00022189,2]
[323279734,1713867043113,-186.38249675,0.0002219,2]
[323279736,1713867043122,-155.3169759,0.0002219,2]
[323279738,1713867043131,-302.49470746,0.0002219,2]
[323279740,1713867043143,-163.35072006,0.0002219,2]
[323279742,1713867043171,-500.0,0.0002219,2]
[323279744,1713867043204,-500.0,0.0002219,2]
[323279746,1713867043227,-151.0,0.0002219,2]
[323279748,1713867043255,-519.547444,0.0002219,2]
[323279750,1713867043295,-519.547444,0.0002219,2]
[323279752,1713867043342,-500.0,0.00022191,2]
[323279754,1713867043370,-500.0,0.00022191,2]
[323279755,1713867043380,-164.66164206,0.00022191,2]
[323279756,1713867043389,-559.31,0.00022191,2]
[323279757,1713867043398,-500.0,0.00022191,2]
[323279758,1713867043407,-150.91054347,0.00022191,2]
[323279759,1713867043416,-500.0,0.00022191,2]
[323279760,1713867043426,-503.09762238,0.00022191,2]
[323279761,1713867043435,-500.0,0.00022191,2]
[323279762,1713867043444,-500.0,0.00022191,2]
[323279763,1713867043453,-500.0,0.00022191,2]
[323279764,1713867043463,-500.0,0.00022191,2]
[323279765,1713867043472,-500.0,0.00022191,2]
[323279766,1713867043482,-500.0,0.00022191,2]
[323279767,1713867043491,-586.89,0.00022191,2]
[323279768,1713867043500,-82.07043103,0.00022191,2]
[323279783,1713867043712,-615.75933218,0.00019,2]
[323279785,1713867043722,-31.73666782,0.00021917,2]
[323279891,1713867044703,-486.40333218,0.00021917,2]
[323279893,1713867044713,-417.92956897,0.00022191,2]
[323279895,1713867044723,-506.00605937,0.00022191,2]
[323279897,1713867044732,-500.0,0.00022191,2]
[323279899,1713867044740,-500.0,0.00022191,2]
[323279901,1713867044749,-459.64241215,0.00022191,2]
[323279903,1713867044758,-500.0,0.00022191,2]
[323279905,1713867044767,-500.0,0.00022191,2]
[323279907,1713867044776,-500.0,0.00022191,2]
[323279909,1713867044785,-505.58041136,0.00022191,2]
[323279911,1713867044794,-500.0,0.00022191,2]
[323279913,1713867044803,-500.0,0.00022191,2]
[323279915,1713867044812,-500.0,0.00022191,2]
[323279916,1713867044823,-500.0,0.00022191,2]
[323279918,1713867044833,-500.86560246,0.00022191,2]
[323279920,1713867044841,-500.0,0.00022191,2]
[323279922,1713867044851,-500.0,0.00022191,2]
[323279924,1713867044860,-500.0,0.00022191,2]
[323279926,1713867044869,-792.89,0.00022191,2]
[323279928,1713867044878,-500.0,0.00022191,2]
[323279930,1713867044887,-500.0,0.00022191,2]
[323279932,1713867044896,-151.0,0.00022191,2]
[323279934,1713867044905,-500.0,0.00022191,2]
[323279936,1713867044914,-500.0,0.00022191,2]
[323279938,1713867044923,-500.0,0.00022191,2]
[323279941,1713867044932,-500.0,0.00022191,2]
[323279943,1713867044941,-650.8,0.00022191,2]
[323279944,1713867044951,-500.0,0.00022191,2]
[323279946,1713867044960,-500.0,0.00022191,2]
[323279949,1713867044970,-1100.72,0.00022191,2]
[323279951,1713867044979,-500.0,0.00022191,2]
[323279952,1713867044988,-634.81,0.00022191,2]
[323279954,1713867044997,-500.0,0.00022191,2]
[323279957,1713867045008,-500.0,0.00022191,2]
[323279959,1713867045017,-500.0,0.00022191,2]
[323279961,1713867045026,-500.0,0.00022191,2]
[323279963,1713867045035,-500.0,0.00022191,2]
[323279965,1713867045044,-500.0,0.00022191,2]
[323279967,1713867045053,-500.0,0.00022191,2]
[323279969,1713867045062,-500.0,0.00022191,2]
[323279970,1713867045071,-500.0,0.00022191,2]
[323279972,1713867045080,-500.0,0.00022191,2]
[323279975,1713867045090,-503.68586273,0.00022191,2]
[323279976,1713867045099,-519.547444,0.00022191,2]
[323279979,1713867045108,-1075.7,0.00022191,2]
[323279981,1713867045117,-519.547444,0.00022191,2]
[323279982,1713867045126,-701.94,0.00022191,2]
[323279984,1713867045136,-500.0,0.00022191,2]
[323279986,1713867045145,-296.83117139,0.00022191,2]
[323279990,1713867045166,-203.16882861,0.00022191,2]
[323279992,1713867045175,-500.0,0.00022191,2]
[323279994,1713867045184,-121.57117139,0.00022191,2]
[323279998,1713867045220,-378.42882861,0.00022191,2]
[323280000,1713867045228,-500.0,0.00022191,2]
[323280002,1713867045239,-500.0,0.00022191,2]
[323280004,1713867045248,-500.0,0.00022191,2]
[323280006,1713867045257,-151.0,0.00022191,2]
[323280008,1713867045265,-500.0,0.00022191,2]
[323280010,1713867045275,-641.96548885,0.00022191,2]
[323280149,1713867046351,-154.82968734,0.0001871,2]
[323280150,1713867046360,-603.3578092,0.00018898,2]
[323280151,1713867046370,-203.583665,0.000209,2]
[323280152,1713867046379,-33.96451115,0.00022191,2]
[323280153,1713867046388,-500.0,0.00022191,2]
[323280154,1713867046398,-500.0,0.00022191,2]
[323280155,1713867046407,-500.0,0.00022191,2]
[323280156,1713867046416,-151.0,0.00022191,2]
[323280157,1713867046426,-690.8,0.00022191,2]
[323280158,1713867046436,-500.0,0.00022191,2]
[323280159,1713867046445,-248.51,0.00022191,2]
[323280160,1713867046454,-500.0,0.00022191,2]
[323280161,1713867046467,-504.79379723,0.00022191,2]
[323280162,1713867046476,-686.85,0.00022191,2]
[323280163,1713867046485,-634.71,0.00022191,2]
[323280164,1713867046495,-345.993572,0.00022191,2]
[323280165,1713867046504,-345.993572,0.00022191,2]
[323280166,1713867046512,-500.0,0.00022191,2]
[323280167,1713867046522,-500.0,0.00022191,2]
[323280168,1713867046531,-500.0,0.00022191,2]
[323280169,1713867046540,-773.33,0.00022191,2]
[323280170,1713867046549,-500.0,0.00022191,2]
[323280171,1713867046559,-1520.0,0.00022191,2]
[323280172,1713867046567,-683.82,0.00022191,2]
[323280173,1713867046577,-1106.67,0.00022191,2]
[323280174,1713867046585,-713.71,0.00022191,2]
[323280175,1713867046595,-500.0,0.00022191,2]
[323280176,1713867046604,-500.0,0.00022191,2]
[323280177,1713867046614,-151.0,0.00022191,2]
[323280178,1713867046623,-1964.25,0.00022191,2]
[323280179,1713867046633,-151.0,0.00022191,2]
[323280180,1713867046642,-500.0,0.00022191,2]
[323280181,1713867046651,-500.0,0.00022191,2]
[323280182,1713867046661,-1107.86,0.00022191,2]
[323280183,1713867046670,-151.0,0.00022191,2]
[323280184,1713867046679,-650.75,0.00022191,2]
[323280185,1713867046688,-1297.58,0.00022191,2]
[323280186,1713867046697,-500.0,0.00022191,2]
[323280187,1713867046706,-151.0,0.00022191,2]
[323280188,1713867046717,-151.0,0.00022191,2]
[323280189,1713867046726,-500.0,0.00022191,2]
[323280190,1713867046735,-500.0,0.00022191,2]
[323280191,1713867046744,-942.35,0.00022191,2]
[323280192,1713867046753,-500.0,0.00022191,2]
[323280193,1713867046763,-500.0,0.00022191,2]
[323280194,1713867046771,-500.0,0.00022191,2]
[323280195,1713867046780,-1625.36,0.00022191,2]
[323280196,1713867046789,-1391.46,0.00022191,2]
[323280197,1713867046798,-500.0,0.00022191,2]
[323280198,1713867046807,-151.0,0.00022191,2]
[323280199,1713867046815,-151.0,0.00022191,2]
[323280200,1713867046826,-500.0,0.00022191,2]
[323280201,1713867046835,-151.0,0.00022191,2]
[323280202,1713867046844,-291.064263,0.00022191,2]
[323280204,1713867046853,-151.0,0.00022191,2]
[323280206,1713867046862,-151.0,0.00022191,2]
[323280208,1713867046871,-1239.758843,0.00022191,2]
[323280210,1713867046880,-1239.758843,0.00022191,2]
[323280212,1713867046889,-500.0,0.00022191,2]
[323280214,1713867046899,-1239.758843,0.00022191,2]
[323280216,1713867046908,-1239.758843,0.00022191,2]
[323280218,1713867046918,-500.0,0.00022191,2]
[323280220,1713867046927,-151.0,0.00022191,2]
[323280222,1713867046937,-151.0,0.00022191,2]
[323280224,1713867046950,-322.812041,0.00022191,2]
[323280226,1713867046959,-322.812041,0.00022191,2]
[323280228,1713867046970,-2241.05,0.00022191,2]
[323280230,1713867046979,-2385.63,0.00022191,2]
[323280232,1713867046988,-9838.1,0.00022191,2]
[323280234,1713867046997,-388.89093978,0.00022191,2]
[323280236,1713867047005,-603.89,0.00022191,2]
[323280238,1713867047014,-1185.11,0.00022191,2]
[323280240,1713867047023,-603.87,0.00022191,2]
[323280242,1713867047033,-500.0,0.00022191,2]
[323280244,1713867047042,-1686.74,0.00022191,2]
[323280245,1713867047050,-500.0,0.00022191,2]
[323280247,1713867047060,-500.0,0.00022191,2]
[323280249,1713867047068,-151.0,0.00022191,2]
[323280251,1713867047078,-500.0,0.00022191,2]
[323280253,1713867047087,-500.0,0.00022191,2]
[323280255,1713867047096,-476.58650304,0.00022191,2]
[323280257,1713867047105,-576.52,0.00022191,2]
[323280258,1713867047114,-778.28,0.00022191,2]
[323280260,1713867047123,-500.0,0.00022191,2]
[323280262,1713867047132,-1618.55,0.00022191,2]
[323280264,1713867047142,-858.8,0.00022191,2]
[323280265,1713867047151,-666.9,0.00022191,2]
[323280266,1713867047160,-500.0,0.00022191,2]
[323280268,1713867047170,-500.0,0.00022191,2]
[323280270,1713867047179,-1777.93,0.00022191,2]
[323280272,1713867047189,-500.0,0.00022191,2]
[323280274,1713867047201,-500.0,0.00022191,2]
[323280276,1713867047211,-935.633361,0.00022191,2]
[323280278,1713867047220,-500.0,0.00022191,2]
[323280280,1713867047230,-3528.51,0.00022191,2]
[323280282,1713867047239,-935.633361,0.00022191,2]
[323280284,1713867047247,-500.0,0.00022191,2]
[323280286,1713867047257,-500.0,0.00022191,2]
[323280288,1713867047266,-810.46,0.00022191,2]
[323280290,1713867047276,-225.99638695,0.00022191,2]
[323280292,1713867047286,-500.0,0.00022191,2]
[323280294,1713867047295,-1317.47,0.00022191,2]
[323280296,1713867047304,-500.0,0.00022191,2]
[323280298,1713867047313,-3189.1,0.00022191,2]
[323280300,1713867047322,-1384.5,0.00022191,2]
[323280302,1713867047332,-1380.34,0.00022191,2]
[323280304,1713867047341,-2040.64,0.00022191,2]
[323280306,1713867047350,-590.11,0.00022191,2]
[323280308,1713867047359,-500.0,0.00022191,2]
[323280309,1713867047369,-22785.48,0.00022191,2]
[323280310,1713867047378,-500.0,0.00022191,2]
[323280311,1713867047388,-500.0,0.00022191,2]
[323280312,1713867047397,-500.0,0.00022191,2]
[323280313,1713867047406,-518.14,0.00022191,2]
[323280314,1713867047414,-154.82968734,0.000222,2]
[323280315,1713867047424,-533.24,0.0002236,3]
[323280316,1713867047466,-520.68845158,0.00022365,2]
[323280317,1713867047476,-302.0,0.0002246,2]
[323280318,1713867047486,-240.19124394,0.00022463,2]
[323280319,1713867047495,-151.0,0.00022464,2]
[323280320,1713867047504,-151.0,0.00022464,2]
[323280321,1713867047513,-345.993572,0.00022464,2]
[323280322,1713867047523,-345.993572,0.00022464,2]
[323280323,1713867047532,-151.0,0.00022464,2]
[323280324,1713867047541,-218.507235,0.00022464,2]
[323280325,1713867047551,-500.0,0.00022465,2]
[323280326,1713867047560,-500.0,0.00022465,2]
[323280327,1713867047569,-559.31,0.00022465,2]
[323280328,1713867047579,-500.0,0.00022465,2]
[323280330,1713867047587,-500.0,0.00022465,2]
[323280332,1713867047596,-457.47137992,0.00022465,2]
[323280333,1713867047605,-500.0,0.00022465,2]
[323280336,1713867047615,-500.0,0.00022465,2]
[323280337,1713867047624,-586.89,0.00022465,2]
[323280340,1713867047634,-500.0,0.00022465,2]
[323280341,1713867047643,-648.66851977,0.00022465,2]
[323280343,1713867047652,-500.0,0.00022465,2]
[323280345,1713867047662,-500.0,0.00022465,2]
[323280347,1713867047671,-500.0,0.00022465,2]
[323280349,1713867047680,-500.0,0.00022465,2]
[323280351,1713867047690,-500.0,0.00022465,2]
[323280353,1713867047701,-252.50293124,0.00022465,2]
[323280427,1713867950090,-239.30676745,0.0001495,2]
[323280429,1713868033091,-300.0,0.00014511,2]
[323280430,1713868033112,-154.82968734,0.00014512,2]
[323280431,1713868033131,-45.17031266,0.00014513,2]
[323280433,1713868052098,-1620.29564358,0.00014512,2]
[323280434,1713868052119,-882.56596295,0.00014513,2]
[323280435,1713868052138,-173.22582113,0.00014513,2]
[323280436,1713868052158,-173.22582113,0.00014513,2]
[323280437,1713868052177,-173.22582113,0.00014513,2]
[323280438,1713868052200,-154.82968734,0.00014514,2]
[323280439,1713868052220,-300.0,0.00014659,2]
[323280440,1713868052241,-300.0,0.00014659,2]
[323280441,1713868052261,-1550.76359454,0.00014659,2]
[323280442,1713868052280,-250.0,0.00014661,2]
[323280443,1713868052302,-27.29025272,0.0001495,2]
[323280445,1713868150086,-161.5378426,0.00014224,2]
[323280446,1713868150108,-235.28698393,0.00014514,2]
[323280447,1713868154110,-1255.03692632,0.00014514,2]
[323280448,1713868154130,-585.3341027,0.00014515,2]
[323280449,1713868154150,-665.41800615,0.000148,2]
[323280450,1713868154170,-665.41800615,0.0001495,2]
[323280451,1713868154190,-1668.9644791,0.00014952,2]
[323280452,1713868154209,-173.22582113,0.00015006,2]
[323280453,1713868154228,-1509.879336,0.00015007,2]
[323280454,1713868154247,-959.88413668,0.00015154,2]
[323280455,1713868154267,-14.90868532,0.00015763,2]
[323280456,1713868154296,-703.61500368,0.00015763,2]
[323280457,1713868154317,-300.0,0.0001595,2]
[323280458,1713868154337,-300.0,0.0001595,2]
[323280459,1713868154357,-1550.19754636,0.00015951,2]
[323280460,1713868154378,-1620.03238778,0.00015951,2]
[323280461,1713868154398,-187.28344922,0.00015952,2]
[323280462,1713868154418,-300.0,0.00015952,2]
[323280463,1713868154438,-155.55822462,0.00015952,2]
[323280464,1713868154457,-246.95949493,0.00015953,2]
[323280465,1713868154477,-44106.84989341,0.00015953,2]
[323280466,1713868164161,-9077.888537,0.00015794,2]
[323280467,1713868164181,-38997.4781173,0.00015953,2]
[323280468,1713868164202,-24900.0,0.00015954,2]
[323280469,1713868164222,-231.9145797,0.0001634,2]
[323280470,1713868164244,-420.0,0.0001744,2]
[323280471,1713868164265,-420.0,0.00017545,2]
[323280472,1713868164284,-188.81822926,0.00017685,2]
[323280473,1713868164305,-411.41425187,0.00018422,2]
[323280474,1713868164324,-603.3578092,0.000185,2]
[323280475,1713868164344,-261.99062382,0.00018949,2]
[323280476,1713868164364,-189.19295912,0.0001897,2]
[323280477,1713868164386,-615.75933218,0.00019,2]
[323280478,1713868164405,-587.0,0.00019069,2]
[323280479,1713868164427,-168.864447,0.00019178,2]
[323280480,1713868164448,-539.96426711,0.00019211,2]
[323280481,1713868164469,-587.0,0.000193,2]
[323280482,1713868164489,-163.35072006,0.00019311,2]
[323280483,1713868164510,-155.3169759,0.00019311,2]
[323280484,1713868164532,-302.49470746,0.00019311,2]
[323280485,1713868164556,-186.38249675,0.00019311,2]
[323280486,1713868164576,-203.80378127,0.00019311,2]
[323280487,1713868164597,-2587.27470458,0.00019311,2]
[323280488,1713868164618,-308.43832005,0.00019311,2]
[323280489,1713868164640,-193.56362685,0.00019311,2]
[323280490,1713868164660,-157.7311165,0.00019311,2]
[323280491,1713868164681,-521.42032031,0.00019311,2]
[323280492,1713868164700,-207.98156917,0.00019311,2]
[323280493,1713868164721,-207.85032377,0.00019311,2]
[323280494,1713868164741,-282.52324143,0.00019311,2]
[323280495,1713868164763,-162.55370542,0.00019311,2]
[323280496,1713868164784,-119.73605535,0.00019312,2]
[323280547,1713868238314,-3651.68401259,0.000189,2]
[323280548,1713868238325,-173.06449323,0.00019311,2]
[323280549,1713868238334,-692.70825887,0.00019312,2]
[323280550,1713868238343,-36.87217114,0.00019312,2]
[323280551,1713868238352,-1249.34569341,0.00019998,2]
[323280552,1713868238361,-300.0,0.00019999,2]
[323280553,1713868238370,-249.72537072,0.00019999,2]
[323280554,1713868238382,-50.27462928,0.00019999,2]
[323280555,1713868238391,-539.96426709,0.0002,2]
[323280556,1713868238400,-319.72058798,0.0002,2]
[323280557,1713868238409,-5459.67159958,0.0002,2]
[323280558,1713868238418,-400.0,0.0002,2]
[323280559,1713868238427,-1442.68762834,0.00020214,2]
[323280560,1713868238439,-354.80715765,0.00020215,2]
[323280561,1713868238448,-154.82968734,0.00020215,2]
[323280562,1713868238458,-238.88786072,0.00020215,2]
[323280563,1713868238467,-241.51912105,0.00020216,2]
[323280564,1713868238476,-885.74670609,0.00020217,5]
[323280565,1713868238485,-166.495461,0.0002062,2]
[323280566,1713868238494,-539.96426709,0.00020788,2]
[323280567,1713868238503,-5000.0,0.000213,2]
[323280568,1713868238512,-539.96426709,0.00021577,2]
[323280569,1713868238521,-231.91457965,0.00021594,2]
[323280570,1713868238530,-306.0,0.00021597,2]
[323280572,1713868238539,-268.3049176,0.00021671,2]
[323280574,1713868238548,-420.0,0.00021777,2]
[323280576,1713868238562,-695.54591502,0.00021914,2]
[323280578,1713868238572,-189.19295912,0.00021914,2]
[323280580,1713868238581,-160.23576125,0.00021915,2]
[323280582,1713868238590,-2623.01567159,0.00021916,2]
[323280584,1713868238600,-62883.5757861,0.00021916,2]
[323280586,1713868238609,-553.83136724,0.00021916,2]
[323280588,1713868238618,-500.0,0.00021916,2]
[323280590,1713868238627,-180.29576103,0.00021916,2]
[323280592,1713868238637,-176.06799262,0.00021916,2]
[323280593,1713868238647,-500.0,0.00021916,2]
[323280595,1713868238656,-164.91771821,0.00021917,2]
[323280597,1713868238666,-500.0,0.00021917,2]
[323280599,1713868238675,-500.0,0.00021917,2]
[323280601,1713868238685,-500.0,0.00021917,2]
[323280604,1713868238695,-500.0,0.00021917,2]
[323280605,1713868238706,-726.82,0.00021917,2]
[323280607,1713868238715,-599.08527048,0.00021917,2]
[323280609,1713868238724,-500.0,0.00021917,2]
[323280611,1713868238735,-522.87,0.00021917,2]
[323280614,1713868238745,-500.0,0.00021917,2]
[323280616,1713868238754,-500.0,0.00021917,2]
[323280618,1713868238763,-500.0,0.00021917,2]
[323280620,1713868238772,-500.0,0.00021917,2]
[323280621,1713868238781,-500.0,0.00021917,2]
[323280624,1713868238791,-500.0,0.00021917,2]
[323280626,1713868238800,-500.0,0.00021917,2]
[323280628,1713868238809,-500.0,0.00021917,2]
[323280630,1713868238818,-500.0,0.00021917,2]
[323280632,1713868238827,-500.0,0.00021917,2]
[323280633,1713868238836,-352.22110512,0.00021917,2]
[323280635,1713868238846,-500.0,0.00021917,2]
[323280637,1713868238855,-500.0,0.00021917,2]
[323280639,1713868238864,-626.83,0.00021917,2]
[323280642,1713868238874,-500.0,0.00021917,2]
[323280644,1713868238883,-1189.45,0.00021917,2]
[323280646,1713868238892,-867.89,0.00021917,2]
[323280648,1713868238901,-500.0,0.00021917,2]
[323280650,1713868238910,-500.0,0.00021917,2]
[323280652,1713868238920,-500.0,0.00021917,2]
[323280653,1713868238929,-500.0,0.00021917,2]
[323280655,1713868238940,-596.57,0.00021917,2]
[323280658,1713868238949,-500.0,0.00021917,2]
[323280660,1713868238958,-500.0,0.00021917,2]
[323280661,1713868238967,-1008.99,0.00021917,2]
[323280663,1713868238977,-647.8094846,0.00021917,2]
[323280665,1713868238986,-581.91,0.00021917,2]
[323280667,1713868238996,-500.0,0.00021917,2]
[323280669,1713868239005,-500.0,0.00021917,2]
[323280672,1713868239014,-500.0,0.00021917,2]
[323280673,1713868239024,-643.45,0.00021917,2]
[323280676,1713868239034,-500.0,0.00021917,2]
[323280677,1713868239043,-500.0,0.00021917,2]
[323280679,1713868239052,-1135.73,0.00021917,2]
[323280681,1713868239061,-500.0,0.00021917,2]
[323280683,1713868239069,-986.06,0.00021917,2]
[323280685,1713868239078,-500.0,0.00021917,2]
[323280687,1713868239087,-500.0,0.00021917,2]
[323280690,1713868239096,-500.0,0.00021917,2]
[323280691,1713868239105,-250.2823541,0.00021917,2]
[323280693,1713868239115,-500.0,0.00021917,2]
[323280695,1713868239125,-500.0,0.00021917,2]
[323280697,1713868239134,-552.5,0.00021917,2]
[323280699,1713868239143,-500.0,0.00021917,2]
[323280701,1713868239152,-500.0,0.00021917,2]
[323280703,1713868239161,-594.26746955,0.00021917,2]
[323280705,1713868239170,-500.0,0.00021917,2]
[323280707,1713868239179,-500.0,0.00021917,2]
[323280710,1713868239189,-500.0,0.00021917,2]
[323280712,1713868239198,-500.0,0.00021917,2]
[323280714,1713868239207,-500.0,0.00021917,2]
[323280716,1713868239216,-662.02,0.00021917,2]
[323280718,1713868239225,-500.0,0.00021917,2]
[323280720,1713868239234,-500.0,0.00021917,2]
[323280722,1713868239243,-500.0,0.00021917,2]
[323280724,1713868239252,-608.27,0.00021917,2]
[323280726,1713868239261,-500.0,0.00021917,2]
[323280728,1713868239269,-500.0,0.00021917,2]
[323280730,1713868239278,-500.0,0.00021917,2]
[323280732,1713868239287,-500.0,0.00021917,2]
[323280733,1713868239296,-500.0,0.00021917,2]
[323280736,1713868239305,-500.0,0.00021917,2]
[323280737,1713868239314,-281.01822611,0.00021917,2]
[323280740,1713868239323,-500.0,0.00021917,2]
[323280741,1713868239332,-658.23,0.00021917,2]
[323280743,1713868239341,-500.0,0.00021917,2]
[323280745,1713868239350,-500.0,0.00021917,2]
[323280748,1713868239359,-500.0,0.00021917,2]
[323280749,1713868239368,-500.0,0.00021917,2]
[323280751,1713868239377,-500.0,0.00021917,2]
[323280753,1713868239386,-500.0,0.00021917,2]
[323280755,1713868239396,-500.0,0.00021917,2]
[323280757,1713868239405,-503.18245175,0.00021917,2]
[323280759,1713868239415,-741.1,0.00021917,2]
[323280761,1713868239424,-500.0,0.00021917,2]
[323280763,1713868239434,-252.16044463,0.00021917,2]
[323280765,1713868239442,-500.0,0.00021917,2]
[323280767,1713868239452,-1456.67,0.00021917,2]
[323280769,1713868239461,-500.0,0.00021917,2]
[323280771,1713868239470,-1882.41,0.00021917,2]
[323280773,1713868239479,-1060.55,0.00021917,2]
[323280775,1713868239488,-500.0,0.00021917,2]
[323280777,1713868239497,-500.0,0.00021917,2]
[323280778,1713868239506,-683.97,0.00021917,2]
[323280780,1713868239515,-500.0,0.00021917,2]
[323280781,1713868239523,-500.0,0.00021917,2]
[323280782,1713868239532,-500.0,0.00021917,2]
[323280785,1713868239542,-623.64,0.00021917,2]
[323280786,1713868239551,-500.0,0.00021917,2]
[323280788,1713868239564,-500.0,0.00021917,2]
[323280791,1713868239573,-500.0,0.00021917,2]
[323280792,1713868239582,-500.0,0.00021917,2]
[323280794,1713868239591,-500.0,0.00021917,2]
[323280796,1713868239600,-1061.7,0.00021917,2]
[323280797,1713868239609,-500.23229112,0.00021917,2]
[323280798,1713868239618,-500.0,0.00021917,2]
[323280801,1713868239628,-556.47430242,0.00021917,2]
[323280803,1713868239637,-509.29167593,0.00021917,2]
[323280804,1713868239647,-500.25477317,0.00021917,2]
[323280807,1713868239658,-500.0,0.00021917,2]
[323280809,1713868239668,-500.0,0.00021917,2]
[323280811,1713868239677,-538.13,0.00021917,2]
[323280813,1713868239686,-455.06703559,0.00021917,2]
[323280814,1713868239695,-21836.09,0.00021917,2]
[323280817,1713868239704,-500.0,0.00021917,2]
[323280818,1713868239713,-500.0,0.00021917,2]
[323280820,1713868239723,-903.08,0.00021917,2]
[323280822,1713868239731,-2227.78,0.00021917,2]
[323280824,1713868239741,-500.0,0.00021917,2]
[323280826,1713868239749,-500.0,0.00021917,2]
[323280828,1713868239759,-500.0,0.00021917,2]
[323280830,1713868239768,-500.0,0.00021917,2]
[323280832,1713868239777,-1642.12,0.00021917,2]
[323280834,1713868239786,-518.33017643,0.00021917,2]
[323280835,1713868239795,-500.0,0.00021917,2]
[323280836,1713868239804,-500.0,0.00021917,2]
[323280837,1713868239814,-500.0,0.00021917,2]
[323280838,1713868239823,-500.1855086,0.00021917,2]
[323280840,1713868239832,-500.0,0.00021917,2]
[323280842,1713868239841,-500.0,0.00021917,2]
[323280844,1713868239850,-500.0,0.00021917,2]
[323280846,1713868239859,-1557.64,0.00021917,2]
[323280852,1713868239869,-500.0,0.00021917,2]
[323280853,1713868239977,-500.0,0.00021917,2]
[323280854,1713868239987,-1333.48,0.00021917,2]
[323280855,1713868239996,-500.0,0.00021917,2]
[323280856,1713868240005,-500.45958164,0.00021917,2]
[323280857,1713868240017,-500.0,0.00021917,2]
[323280858,1713868240026,-500.0,0.00021917,2]
[323280859,1713868240035,-500.0,0.00021917,2]
[323280860,1713868240044,-172.521216,0.00021917,2]
[323280861,1713868240053,-500.0,0.00021917,2]
[323280862,1713868240063,-500.0,0.00021917,2]
[323280863,1713868240072,-585.91338873,0.00021917,2]
[323280864,1713868240081,-500.0,0.00021917,2]
[323280865,1713868240091,-500.0,0.00021917,2]
[323280866,1713868240100,-500.0,0.00021917,2]
[323280867,1713868240109,-500.0,0.00021917,2]
[323280868,1713868240118,-500.0,0.00021917,2]
[323280869,1713868240127,-500.0,0.00021917,2]
[323280870,1713868240136,-500.0,0.00021917,2]